[Event "Titled Tuesday Blitz August 16 Late 2022"]
[White "Sarkar, Justin"]
[Black "Tarnowska, Aleksandra"]
[WhiteFideId "2010011"]
[BlackFideId "1180967"]
[WhiteElo "2076"]
[BlackElo "1700"]
[Result "1-0"]
[Round "05"]
[TimeControl "180+1"]
[Date "2022.08.18"]
[WhiteClock "0:00:00"]
[BlackClock "0:00:00"]

1. e4 {[%clk 0:00:00]}  c5 {[%clk 0:00:00]} 2. Nf3 {[%clk 0:00:00]}  e6 {[%clk 0:00:00]} 3. d4 {[%clk 0:00:00]}  cxd4 {[%clk 0:00:00]} 4. Nxd4 {[%clk 0:00:00]}  a6 {[%clk 0:00:00]} 5. c4 {[%clk 0:00:00]}  Nf6 {[%clk 0:00:00]} 6. f3 {[%clk 0:00:00]}  Nxe4 {[%clk 0:00:00]} 7. fxe4 {[%clk 0:00:00]}  Qh4+ {[%clk 0:00:00]} 8. Ke2 {[%clk 0:00:00]}  Qxe4+ {[%clk 0:00:00]} 9. Be3 {[%clk 0:00:00]}  Be7 {[%clk 0:00:00]} 10. Nc3 {[%clk 0:00:00]}  Qg4+ {[%clk 0:00:00]} 11. Kf2 {[%clk 0:00:00]}  Qh4+ {[%clk 0:00:00]} 12. g3 {[%clk 0:00:00]}  Qf6+ {[%clk 0:00:00]} 13. Qf3 {[%clk 0:00:00]}  O-O {[%clk 0:00:00]} 14. Qxf6 {[%clk 0:00:00]}  Bxf6 {[%clk 0:00:00]} 15. Rd1 {[%clk 0:00:00]}  Nc6 {[%clk 0:00:00]} 16. Bg2 {[%clk 0:00:00]}  Ne5 {[%clk 0:00:00]} 17. b3 {[%clk 0:00:00]}  Ng4+ {[%clk 0:00:00]} 18. Ke2 {[%clk 0:00:00]}  Nxe3 {[%clk 0:00:00]} 19. Kxe3 {[%clk 0:00:00]}  d6 {[%clk 0:00:00]} 20. Ne4 {[%clk 0:00:00]}  Be5 {[%clk 0:00:00]} 21. Nf3 {[%clk 0:00:00]}  Bf6 {[%clk 0:00:00]} 22. Nxf6+ {[%clk 0:00:00]}  gxf6 {[%clk 0:00:00]} 23. Rxd6 {[%clk 0:00:00]}  e5 {[%clk 0:00:00]} 24. Rxf6 {[%clk 0:00:00]}  Kg7 {[%clk 0:00:00]} 25. Rd6 {[%clk 0:00:00]}  Bf5 {[%clk 0:00:00]} 26. Nxe5 {[%clk 0:00:00]}  Rae8 {[%clk 0:00:00]} 27. Kf4 {[%clk 0:00:00]}  Bg6 {[%clk 0:00:00]} 28. Re1 {[%clk 0:00:00]}  Re7 {[%clk 0:00:00]} 29. Nf3 {[%clk 0:00:00]}  Rd7 {[%clk 0:00:00]} 30. Rxd7 {[%clk 0:00:00]} 1-0


[Site "https://www.chess.com"]

[Event "Titled Tuesday Blitz August 16 Late 2022"]
[White "Shapiro, Daniel"]
[Black "Gascon Del Nogal, Jose Rafael"]
[WhiteFideId "2001780"]
[BlackFideId "3902463"]
[WhiteElo "2284"]
[BlackElo "2473"]
[Result "1-0"]
[Round "05"]
[TimeControl "180+1"]
[Date "2022.08.18"]
[WhiteClock "0:00:00"]
[BlackClock "0:00:00"]

1. d4 {[%clk 0:00:00]}  Nf6 {[%clk 0:00:00]} 2. c4 {[%clk 0:00:00]}  g6 {[%clk 0:00:00]} 3. Nc3 {[%clk 0:00:00]}  Bg7 {[%clk 0:00:00]} 4. e4 {[%clk 0:00:00]}  d6 {[%clk 0:00:00]} 5. Be2 {[%clk 0:00:00]}  O-O {[%clk 0:00:00]} 6. Nf3 {[%clk 0:00:00]}  e5 {[%clk 0:00:00]} 7. O-O {[%clk 0:00:00]}  exd4 {[%clk 0:00:00]} 8. Nxd4 {[%clk 0:00:00]}  Re8 {[%clk 0:00:00]} 9. f3 {[%clk 0:00:00]}  Nc6 {[%clk 0:00:00]} 10. Nc2 {[%clk 0:00:00]}  Nd7 {[%clk 0:00:00]} 11. Be3 {[%clk 0:00:00]}  Nc5 {[%clk 0:00:00]} 12. Qd2 {[%clk 0:00:00]}  a5 {[%clk 0:00:00]} 13. Rad1 {[%clk 0:00:00]}  a4 {[%clk 0:00:00]} 14. Bg5 {[%clk 0:00:00]}  f6 {[%clk 0:00:00]} 15. Bh4 {[%clk 0:00:00]}  Be6 {[%clk 0:00:00]} 16. Nd5 {[%clk 0:00:00]}  g5 {[%clk 0:00:00]} 17. Bf2 {[%clk 0:00:00]}  f5 {[%clk 0:00:00]} 18. exf5 {[%clk 0:00:00]}  Bxf5 {[%clk 0:00:00]} 19. Nd4 {[%clk 0:00:00]}  Nxd4 {[%clk 0:00:00]} 20. Bxd4 {[%clk 0:00:00]}  Bxd4+ {[%clk 0:00:00]} 21. Qxd4 {[%clk 0:00:00]}  Rxe2 {[%clk 0:00:00]} 22. Nf6+ {[%clk 0:00:00]}  Kf7 {[%clk 0:00:00]} 23. Nh5 {[%clk 0:00:00]}  Qh8 {[%clk 0:00:00]} 24. Qd5+ {[%clk 0:00:00]}  Kg6 {[%clk 0:00:00]} 25. Ng3 {[%clk 0:00:00]}  Re5 {[%clk 0:00:00]} 26. Qd2 {[%clk 0:00:00]}  Rae8 {[%clk 0:00:00]} 27. Nxf5 {[%clk 0:00:00]}  Rxf5 {[%clk 0:00:00]} 28. Qc2 {[%clk 0:00:00]}  Kf6 {[%clk 0:00:00]} 29. b4 {[%clk 0:00:00]}  axb3 {[%clk 0:00:00]} 30. axb3 {[%clk 0:00:00]}  Qf8 {[%clk 0:00:00]} 31. g4 {[%clk 0:00:00]}  Rf4 {[%clk 0:00:00]} 32. Qxh7 {[%clk 0:00:00]}  Qg7 {[%clk 0:00:00]} 33. Qc2 {[%clk 0:00:00]}  Nd7 {[%clk 0:00:00]} 34. Rd5 {[%clk 0:00:00]}  Ne5 {[%clk 0:00:00]} 35. c5 {[%clk 0:00:00]}  Qf7 {[%clk 0:00:00]} 36. Qd2 {[%clk 0:00:00]}  Kg7 {[%clk 0:00:00]} 37. cxd6 {[%clk 0:00:00]}  cxd6 {[%clk 0:00:00]} 38. Rxd6 {[%clk 0:00:00]}  Re6 {[%clk 0:00:00]} 39. Rd5 {[%clk 0:00:00]}  Nxf3+ {[%clk 0:00:00]} 40. Rxf3 {[%clk 0:00:00]}  Rxf3 {[%clk 0:00:00]} 41. Rxg5+ {[%clk 0:00:00]}  Rg6 {[%clk 0:00:00]} 42. Qd4+ {[%clk 0:00:00]}  Qf6 {[%clk 0:00:00]} 43. Rxg6+ {[%clk 0:00:00]}  Kxg6 {[%clk 0:00:00]} 44. Qe4+ {[%clk 0:00:00]}  Kg5 {[%clk 0:00:00]} 45. Kg2 {[%clk 0:00:00]}  Rf2+ {[%clk 0:00:00]} 46. Kg3 {[%clk 0:00:00]}  Qf4+ {[%clk 0:00:00]} 47. Qxf4+ {[%clk 0:00:00]} 1-0


[Site "https://www.chess.com"]

[Event "Titled Tuesday Blitz August 16 Late 2022"]
[White "Stanojoski, Zvonko"]
[Black "Michalski, Olaf"]
[WhiteFideId "15000257"]
[BlackFideId "1106740"]
[WhiteElo "2364"]
[BlackElo "1937"]
[Result "1-0"]
[Round "05"]
[TimeControl "180+1"]
[Date "2022.08.18"]
[WhiteClock "0:00:00"]
[BlackClock "0:00:00"]

1. c4 {[%clk 0:00:00]}  Nf6 {[%clk 0:00:00]} 2. g3 {[%clk 0:00:00]}  g6 {[%clk 0:00:00]} 3. Bg2 {[%clk 0:00:00]}  Bg7 {[%clk 0:00:00]} 4. Nf3 {[%clk 0:00:00]}  O-O {[%clk 0:00:00]} 5. O-O {[%clk 0:00:00]}  d5 {[%clk 0:00:00]} 6. cxd5 {[%clk 0:00:00]}  Nxd5 {[%clk 0:00:00]} 7. Nc3 {[%clk 0:00:00]}  Nxc3 {[%clk 0:00:00]} 8. dxc3 {[%clk 0:00:00]}  Qxd1 {[%clk 0:00:00]} 9. Rxd1 {[%clk 0:00:00]}  e5 {[%clk 0:00:00]} 10. Be3 {[%clk 0:00:00]}  f6 {[%clk 0:00:00]} 11. Bc5 {[%clk 0:00:00]}  Re8 {[%clk 0:00:00]} 12. Nd2 {[%clk 0:00:00]}  Nd7 {[%clk 0:00:00]} 13. Ba3 {[%clk 0:00:00]}  Nb6 {[%clk 0:00:00]} 14. c4 {[%clk 0:00:00]}  c6 {[%clk 0:00:00]} 15. Rac1 {[%clk 0:00:00]}  f5 {[%clk 0:00:00]} 16. c5 {[%clk 0:00:00]}  Nd5 {[%clk 0:00:00]} 17. Nc4 {[%clk 0:00:00]}  e4 {[%clk 0:00:00]} 18. Nd6 {[%clk 0:00:00]}  Re7 {[%clk 0:00:00]} 19. e3 {[%clk 0:00:00]}  Be6 {[%clk 0:00:00]} 20. Bf1 {[%clk 0:00:00]}  Rd7 {[%clk 0:00:00]} 21. Bc4 {[%clk 0:00:00]}  Rad8 {[%clk 0:00:00]} 22. h4 {[%clk 0:00:00]}  b5 {[%clk 0:00:00]} 23. cxb6 {[%clk 0:00:00]}  axb6 {[%clk 0:00:00]} 24. Bxd5 {[%clk 0:00:00]}  Bxd5 {[%clk 0:00:00]} 25. Nc4 {[%clk 0:00:00]}  Bxc4 {[%clk 0:00:00]} 26. Rxd7 {[%clk 0:00:00]}  Rxd7 {[%clk 0:00:00]} 27. Rxc4 {[%clk 0:00:00]}  Rd1+ {[%clk 0:00:00]} 28. Kg2 {[%clk 0:00:00]}  c5 {[%clk 0:00:00]} 29. b4 {[%clk 0:00:00]}  Rd3 {[%clk 0:00:00]} 30. Bc1 {[%clk 0:00:00]}  cxb4 {[%clk 0:00:00]} 31. Rxb4 {[%clk 0:00:00]}  Rc3 {[%clk 0:00:00]} 32. Bb2 {[%clk 0:00:00]}  Rc6 {[%clk 0:00:00]} 33. Bd4 {[%clk 0:00:00]}  Bxd4 {[%clk 0:00:00]} 34. Rxd4 {[%clk 0:00:00]}  h5 {[%clk 0:00:00]} 35. Rd7 {[%clk 0:00:00]}  Rc2 {[%clk 0:00:00]} 36. Rd6 {[%clk 0:00:00]}  Rxa2 {[%clk 0:00:00]} 37. Rxg6+ {[%clk 0:00:00]}  Kf7 {[%clk 0:00:00]} 38. Rxb6 {[%clk 0:00:00]}  Re2 {[%clk 0:00:00]} 39. Rh6 {[%clk 0:00:00]} 1-0


[Site "https://www.chess.com"]

[Event "Titled Tuesday Blitz August 16 Late 2022"]
[White "Tristan, Leonardo"]
[Black "Dilanyan, Grigor"]
[WhiteFideId "113816"]
[BlackFideId "13303570"]
[WhiteElo "2404"]
[BlackElo "2264"]
[Result "1-0"]
[Round "05"]
[TimeControl "180+1"]
[Date "2022.08.16"]
[WhiteClock "0:00:56"]
[BlackClock "0:00:12"]

1. d4 {[%clk 0:03:00]}  Nf6 {[%clk 0:02:59]} 2. Nf3 {[%clk 0:03:01]}  c5 {[%clk 0:02:53]} 3. c3 {[%clk 0:03:00]}  b6 {[%clk 0:02:51]} 4. Bf4 {[%clk 0:03:00]}  Bb7 {[%clk 0:02:52]} 5. e3 {[%clk 0:03:00]}  e6 {[%clk 0:02:52]} 6. Nbd2 {[%clk 0:02:59]}  Be7 {[%clk 0:02:51]} 7. h3 {[%clk 0:02:59]}  O-O {[%clk 0:02:51]} 8. Bd3 {[%clk 0:02:58]}  d6 {[%clk 0:02:51]} 9. O-O {[%clk 0:02:58]}  Nbd7 {[%clk 0:02:52]} 10. Bh2 {[%clk 0:02:57]}  Re8 {[%clk 0:02:51]} 11. a4 {[%clk 0:02:57]}  a6 {[%clk 0:02:51]} 12. e4 {[%clk 0:02:50]}  e5 {[%clk 0:02:48]} 13. dxe5 {[%clk 0:02:44]}  Nxe5 {[%clk 0:02:43]} 14. Nxe5 {[%clk 0:02:43]}  dxe5 {[%clk 0:02:44]} 15. Qe2 {[%clk 0:02:43]}  Bd6 {[%clk 0:02:34]} 16. Nc4 {[%clk 0:02:42]}  Bc7 {[%clk 0:02:34]} 17. Rfd1 {[%clk 0:02:32]}  Qe7 {[%clk 0:02:15]} 18. Qf3 {[%clk 0:02:23]}  b5 {[%clk 0:02:05]} 19. Ne3 {[%clk 0:02:20]}  c4 {[%clk 0:02:04]} 20. Bc2 {[%clk 0:02:20]}  g6 {[%clk 0:01:57]} 21. Bg3 {[%clk 0:02:09]}  Nh5 {[%clk 0:01:54]} 22. Ng4 {[%clk 0:02:09]}  Nf4 {[%clk 0:01:42]} 23. Nh6+ {[%clk 0:02:01]}  Kg7 {[%clk 0:01:39]} 24. Qg4 {[%clk 0:02:01]}  Kxh6 {[%clk 0:01:33]} 25. Rd7 {[%clk 0:02:00]}  Kg7 {[%clk 0:00:38]} 26. Rxe7 {[%clk 0:01:44]}  Rxe7 {[%clk 0:00:39]} 27. axb5 {[%clk 0:01:40]}  axb5 {[%clk 0:00:38]} 28. Rxa8 {[%clk 0:01:39]}  Bxa8 {[%clk 0:00:39]} 29. Qc8 {[%clk 0:01:39]}  Bc6 {[%clk 0:00:37]} 30. Kh2 {[%clk 0:01:37]}  g5 {[%clk 0:00:36]} 31. f3 {[%clk 0:01:25]}  f6 {[%clk 0:00:31]} 32. Bf2 {[%clk 0:01:22]}  Ne6 {[%clk 0:00:31]} 33. Qa6 {[%clk 0:01:16]}  Bd7 {[%clk 0:00:31]} 34. b3 {[%clk 0:01:14]}  cxb3 {[%clk 0:00:27]} 35. Bxb3 {[%clk 0:01:14]}  Nf4 {[%clk 0:00:27]} 36. Bc5 {[%clk 0:01:13]}  Re8 {[%clk 0:00:25]} 37. Qb7 {[%clk 0:01:11]}  Rc8 {[%clk 0:00:25]} 38. Bd6 {[%clk 0:01:08]}  Bxd6 {[%clk 0:00:13]} 39. Qxd7+ {[%clk 0:01:08]}  Kg6 {[%clk 0:00:13]} 40. Bf7+ {[%clk 0:01:02]}  Kg7 {[%clk 0:00:12]} 41. Be6+ {[%clk 0:01:00]}  Kg6 {[%clk 0:00:12]} 42. Bf5+ {[%clk 0:00:56]} 1-0


[Site "https://www.chess.com"]

[Event "Titled Tuesday Blitz August 16 Late 2022"]
[White "Turayev, Shahruh"]
[Black "Voege, Tobias"]
[WhiteFideId "14003856"]
[BlackFideId "1270513"]
[WhiteElo "2217"]
[BlackElo "2360"]
[Result "0-1"]
[Round "05"]
[TimeControl "180+1"]
[Date "2022.08.18"]
[WhiteClock "0:00:00"]
[BlackClock "0:00:00"]

1. e4 {[%clk 0:00:00]}  e6 {[%clk 0:00:00]} 2. Nc3 {[%clk 0:00:00]}  d5 {[%clk 0:00:00]} 3. exd5 {[%clk 0:00:00]}  exd5 {[%clk 0:00:00]} 4. d4 {[%clk 0:00:00]}  Nc6 {[%clk 0:00:00]} 5. Nf3 {[%clk 0:00:00]}  Nge7 {[%clk 0:00:00]} 6. Bd3 {[%clk 0:00:00]}  Bg4 {[%clk 0:00:00]} 7. h3 {[%clk 0:00:00]}  Bxf3 {[%clk 0:00:00]} 8. Qxf3 {[%clk 0:00:00]}  Nxd4 {[%clk 0:00:00]} 9. Qg4 {[%clk 0:00:00]}  Ndc6 {[%clk 0:00:00]} 10. Bg5 {[%clk 0:00:00]}  Qd7 {[%clk 0:00:00]} 11. Qg3 {[%clk 0:00:00]}  O-O-O {[%clk 0:00:00]} 12. O-O-O {[%clk 0:00:00]}  f6 {[%clk 0:00:00]} 13. Bf4 {[%clk 0:00:00]}  Nb4 {[%clk 0:00:00]} 14. Nb5 {[%clk 0:00:00]}  a6 {[%clk 0:00:00]} 15. Bxc7 {[%clk 0:00:00]}  axb5 {[%clk 0:00:00]} 16. Bxd8 {[%clk 0:00:00]}  Nxd3+ {[%clk 0:00:00]} 17. Qxd3 {[%clk 0:00:00]}  Kxd8 {[%clk 0:00:00]} 18. Rhe1 {[%clk 0:00:00]}  Kc7 {[%clk 0:00:00]} 19. Kb1 {[%clk 0:00:00]}  g6 {[%clk 0:00:00]} 20. Qd4 {[%clk 0:00:00]}  Qc6 {[%clk 0:00:00]} 21. g4 {[%clk 0:00:00]}  h5 {[%clk 0:00:00]} 22. Re3 {[%clk 0:00:00]}  Kd7 {[%clk 0:00:00]} 23. Rc3 {[%clk 0:00:00]}  Qd6 {[%clk 0:00:00]} 24. Qa7 {[%clk 0:00:00]}  hxg4 {[%clk 0:00:00]} 25. Qxb7+ {[%clk 0:00:00]}  Ke8 {[%clk 0:00:00]} 26. hxg4 {[%clk 0:00:00]}  b4 {[%clk 0:00:00]} 27. Re3 {[%clk 0:00:00]}  Rh7 {[%clk 0:00:00]} 28. Ree1 {[%clk 0:00:00]}  Kf7 {[%clk 0:00:00]} 29. Rxd5 {[%clk 0:00:00]}  Qf4 {[%clk 0:00:00]} 30. Rd7 {[%clk 0:00:00]}  Qxf2 {[%clk 0:00:00]} 31. Rdxe7+ {[%clk 0:00:00]}  Kg8 {[%clk 0:00:00]} 0-1


[Site "https://www.chess.com"]

[Event "Titled Tuesday Blitz August 16 Late 2022"]
[White "Uskov, Artem"]
[Black "Kolb, Tobias"]
[WhiteFideId "34254854"]
[BlackFideId "12992321"]
[WhiteElo "2335"]
[BlackElo "2224"]
[Result "0-1"]
[Round "05"]
[TimeControl "180+1"]
[Date "2022.08.18"]
[WhiteClock "0:00:00"]
[BlackClock "0:00:00"]

1. e4 {[%clk 0:00:00]}  d6 {[%clk 0:00:00]} 2. d4 {[%clk 0:00:00]}  e5 {[%clk 0:00:00]} 3. d5 {[%clk 0:00:00]}  g6 {[%clk 0:00:00]} 4. Bd3 {[%clk 0:00:00]}  Bg7 {[%clk 0:00:00]} 5. c4 {[%clk 0:00:00]}  Ne7 {[%clk 0:00:00]} 6. Nc3 {[%clk 0:00:00]}  O-O {[%clk 0:00:00]} 7. Be3 {[%clk 0:00:00]}  Na6 {[%clk 0:00:00]} 8. Qd2 {[%clk 0:00:00]}  Nc5 {[%clk 0:00:00]} 9. Bc2 {[%clk 0:00:00]}  f5 {[%clk 0:00:00]} 10. f3 {[%clk 0:00:00]}  a5 {[%clk 0:00:00]} 11. O-O-O {[%clk 0:00:00]}  b6 {[%clk 0:00:00]} 12. h4 {[%clk 0:00:00]}  f4 {[%clk 0:00:00]} 13. Bf2 {[%clk 0:00:00]}  h6 {[%clk 0:00:00]} 14. Kb1 {[%clk 0:00:00]}  Bd7 {[%clk 0:00:00]} 15. g3 {[%clk 0:00:00]}  fxg3 {[%clk 0:00:00]} 16. Bxg3 {[%clk 0:00:00]}  Kh7 {[%clk 0:00:00]} 17. Rf1 {[%clk 0:00:00]}  Ng8 {[%clk 0:00:00]} 18. Nge2 {[%clk 0:00:00]}  Nf6 {[%clk 0:00:00]} 19. f4 {[%clk 0:00:00]}  Nh5 {[%clk 0:00:00]} 20. Bh2 {[%clk 0:00:00]}  Bh3 {[%clk 0:00:00]} 21. Rfg1 {[%clk 0:00:00]}  Qxh4 {[%clk 0:00:00]} 22. f5 {[%clk 0:00:00]}  gxf5 {[%clk 0:00:00]} 23. exf5 {[%clk 0:00:00]}  Bf6 {[%clk 0:00:00]} 24. Ng3 {[%clk 0:00:00]}  Rg8 {[%clk 0:00:00]} 25. Nce2 {[%clk 0:00:00]}  Rg4 {[%clk 0:00:00]} 26. Nxh5 {[%clk 0:00:00]}  Qxh5 {[%clk 0:00:00]} 27. Rxg4 {[%clk 0:00:00]}  Qxg4 {[%clk 0:00:00]} 28. Rg1 {[%clk 0:00:00]}  Qxc4 {[%clk 0:00:00]} 29. Nc3 {[%clk 0:00:00]}  Rg8 {[%clk 0:00:00]} 30. Rg6 {[%clk 0:00:00]}  Qf1+ {[%clk 0:00:00]} 31. Nd1 {[%clk 0:00:00]}  Rxg6 {[%clk 0:00:00]} 32. fxg6+ {[%clk 0:00:00]}  Kg7 {[%clk 0:00:00]} 33. a3 {[%clk 0:00:00]}  Bf5 {[%clk 0:00:00]} 34. Bxf5 {[%clk 0:00:00]}  Qxf5+ {[%clk 0:00:00]} 35. Ka2 {[%clk 0:00:00]}  Qxg6 {[%clk 0:00:00]} 36. Qe2 {[%clk 0:00:00]}  Qe4 {[%clk 0:00:00]} 37. Qd2 {[%clk 0:00:00]}  Bg5 {[%clk 0:00:00]} 38. Qf2 {[%clk 0:00:00]}  Qxd5+ {[%clk 0:00:00]} 39. Kb1 {[%clk 0:00:00]}  Qxd1+ {[%clk 0:00:00]} 40. Ka2 {[%clk 0:00:00]}  Qd5+ {[%clk 0:00:00]} 41. Ka1 {[%clk 0:00:00]}  Qd1+ {[%clk 0:00:00]} 42. Ka2 {[%clk 0:00:00]}  Nd3 {[%clk 0:00:00]} 43. Qf5 {[%clk 0:00:00]}  Nc1+ {[%clk 0:00:00]} 44. Kb1 {[%clk 0:00:00]}  Nb3+ {[%clk 0:00:00]} 45. Ka2 {[%clk 0:00:00]}  a4 {[%clk 0:00:00]} 46. Qd7+ {[%clk 0:00:00]}  Kg6 {[%clk 0:00:00]} 47. Qe6+ {[%clk 0:00:00]}  Bf6 {[%clk 0:00:00]} 48. Qg8+ {[%clk 0:00:00]}  Kh5 {[%clk 0:00:00]} 49. Qf7+ {[%clk 0:00:00]}  Kg5 {[%clk 0:00:00]} 50. Qg8+ {[%clk 0:00:00]}  Kf5 {[%clk 0:00:00]} 51. Qh7+ {[%clk 0:00:00]}  Ke6 {[%clk 0:00:00]} 52. Qg8+ {[%clk 0:00:00]}  Kd7 {[%clk 0:00:00]} 53. Qf7+ {[%clk 0:00:00]}  Be7 {[%clk 0:00:00]} 54. Qf5+ {[%clk 0:00:00]}  Kd8 {[%clk 0:00:00]} 55. Qb1 {[%clk 0:00:00]}  Qxb1+ {[%clk 0:00:00]} 56. Kxb1 {[%clk 0:00:00]}  b5 {[%clk 0:00:00]} 57. Kc2 {[%clk 0:00:00]}  Kd7 {[%clk 0:00:00]} 58. Kc3 {[%clk 0:00:00]}  Ke6 {[%clk 0:00:00]} 59. Kb4 {[%clk 0:00:00]}  c6 {[%clk 0:00:00]} 60. Kc3 {[%clk 0:00:00]}  d5 {[%clk 0:00:00]} 61. Kc2 {[%clk 0:00:00]}  Bd6 {[%clk 0:00:00]} 62. Bg1 {[%clk 0:00:00]}  e4 {[%clk 0:00:00]} 63. Be3 {[%clk 0:00:00]}  h5 {[%clk 0:00:00]} 64. Bg1 {[%clk 0:00:00]}  h4 {[%clk 0:00:00]} 65. Kd1 {[%clk 0:00:00]}  h3 {[%clk 0:00:00]} 66. Ke2 {[%clk 0:00:00]}  h2 {[%clk 0:00:00]} 67. Bxh2 {[%clk 0:00:00]}  Bxh2 {[%clk 0:00:00]} 68. Kd1 {[%clk 0:00:00]}  Be5 {[%clk 0:00:00]} 69. Ke2 {[%clk 0:00:00]}  Bxb2 {[%clk 0:00:00]} 70. Kd1 {[%clk 0:00:00]}  Bxa3 {[%clk 0:00:00]} 71. Ke2 {[%clk 0:00:00]}  Bc5 {[%clk 0:00:00]} 72. Kd1 {[%clk 0:00:00]}  d4 {[%clk 0:00:00]} 73. Ke2 {[%clk 0:00:00]}  Kd5 {[%clk 0:00:00]} 74. Kd1 {[%clk 0:00:00]}  Kc4 {[%clk 0:00:00]} 75. Ke2 {[%clk 0:00:00]}  a3 {[%clk 0:00:00]} 76. Kd1 {[%clk 0:00:00]}  a2 {[%clk 0:00:00]} 77. Ke2 {[%clk 0:00:00]}  a1=Q {[%clk 0:00:00]} 78. Kf2 {[%clk 0:00:00]}  Qd1 {[%clk 0:00:00]} 79. Kg3 {[%clk 0:00:00]}  Qf3+ {[%clk 0:00:00]} 80. Kh4 {[%clk 0:00:00]}  Qg2 {[%clk 0:00:00]} 81. Kh5 {[%clk 0:00:00]}  e3 {[%clk 0:00:00]} 82. Kh6 {[%clk 0:00:00]}  e2 {[%clk 0:00:00]} 83. Kh7 {[%clk 0:00:00]}  e1=Q {[%clk 0:00:00]} 0-1


[Site "https://www.chess.com"]

[Event "Titled Tuesday Blitz August 16 Late 2022"]
[White "Vasquez Schroeder, Rodrigo"]
[Black "Goryachkina, Aleksandra"]
[WhiteFideId "3400042"]
[BlackFideId "4147103"]
[WhiteElo "2567"]
[BlackElo "2426"]
[Result "1-0"]
[Round "05"]
[TimeControl "180+1"]
[Date "2022.08.16"]
[WhiteClock "0:00:13"]
[BlackClock "0:00:04"]

1. e4 {[%clk 0:03:00]}  c6 {[%clk 0:02:58]} 2. d4 {[%clk 0:03:00]}  d5 {[%clk 0:02:58]} 3. exd5 {[%clk 0:03:00]}  cxd5 {[%clk 0:02:58]} 4. Bd3 {[%clk 0:03:01]}  Nc6 {[%clk 0:02:58]} 5. c3 {[%clk 0:03:01]}  Nf6 {[%clk 0:02:57]} 6. Bf4 {[%clk 0:03:02]}  Bg4 {[%clk 0:02:53]} 7. Qb3 {[%clk 0:03:02]}  Qd7 {[%clk 0:02:53]} 8. Nd2 {[%clk 0:03:02]}  e6 {[%clk 0:02:53]} 9. Ngf3 {[%clk 0:03:02]}  Bd6 {[%clk 0:02:52]} 10. Bxd6 {[%clk 0:03:00]}  Qxd6 {[%clk 0:02:52]} 11. O-O {[%clk 0:03:01]}  O-O {[%clk 0:02:52]} 12. Rae1 {[%clk 0:03:00]}  Qc7 {[%clk 0:02:41]} 13. Ne5 {[%clk 0:02:55]}  Nxe5 {[%clk 0:02:20]} 14. Rxe5 {[%clk 0:02:53]}  Nd7 {[%clk 0:02:10]} 15. Re3 {[%clk 0:02:49]}  Bh5 {[%clk 0:01:53]} 16. Rfe1 {[%clk 0:02:47]}  a6 {[%clk 0:01:40]} 17. a4 {[%clk 0:02:46]}  Rfe8 {[%clk 0:01:38]} 18. h3 {[%clk 0:02:36]}  Bg6 {[%clk 0:01:35]} 19. Bxg6 {[%clk 0:02:33]}  hxg6 {[%clk 0:01:35]} 20. Nf3 {[%clk 0:02:34]}  Re7 {[%clk 0:01:30]} 21. Qb4 {[%clk 0:02:22]}  Rae8 {[%clk 0:01:27]} 22. Ng5 {[%clk 0:02:19]}  a5 {[%clk 0:01:23]} 23. Qa3 {[%clk 0:02:17]}  Qf4 {[%clk 0:01:21]} 24. Nf3 {[%clk 0:02:16]}  f6 {[%clk 0:01:16]} 25. Qb3 {[%clk 0:02:04]}  b6 {[%clk 0:01:09]} 26. Qb5 {[%clk 0:02:01]}  g5 {[%clk 0:01:00]} 27. Qc6 {[%clk 0:01:41]}  Kf7 {[%clk 0:00:56]} 28. g3 {[%clk 0:01:31]}  Qb8 {[%clk 0:00:54]} 29. Qb5 {[%clk 0:01:24]}  Qc7 {[%clk 0:00:51]} 30. Qd3 {[%clk 0:01:21]}  Rh8 {[%clk 0:00:44]} 31. Kg2 {[%clk 0:01:20]}  Nf8 {[%clk 0:00:43]} 32. b3 {[%clk 0:01:15]}  Qd7 {[%clk 0:00:41]} 33. R1e2 {[%clk 0:01:05]}  e5 {[%clk 0:00:36]} 34. Ng1 {[%clk 0:00:52]}  e4 {[%clk 0:00:35]} 35. Qb5 {[%clk 0:00:50]}  f5 {[%clk 0:00:24]} 36. f4 {[%clk 0:00:26]}  gxf4 {[%clk 0:00:23]} 37. gxf4 {[%clk 0:00:27]}  g5 {[%clk 0:00:22]} 38. Rf2 {[%clk 0:00:24]}  Qxb5 {[%clk 0:00:22]} 39. axb5 {[%clk 0:00:24]}  Ng6 {[%clk 0:00:22]} 40. Ne2 {[%clk 0:00:21]}  Rh4 {[%clk 0:00:20]} 41. Kg3 {[%clk 0:00:20]}  Kf6 {[%clk 0:00:20]} 42. fxg5+ {[%clk 0:00:19]}  Kxg5 {[%clk 0:00:20]} 43. Kh2 {[%clk 0:00:18]}  f4 {[%clk 0:00:20]} 44. Rg2+ {[%clk 0:00:19]}  Kf5 {[%clk 0:00:20]} 45. Rf2 {[%clk 0:00:19]}  Kg5 {[%clk 0:00:18]} 46. Rg2+ {[%clk 0:00:19]}  Kh6 {[%clk 0:00:18]} 47. Nxf4 {[%clk 0:00:19]}  Nxf4 {[%clk 0:00:18]} 48. Rgg3 {[%clk 0:00:18]}  Ng6 {[%clk 0:00:17]} 49. c4 {[%clk 0:00:17]}  Rf7 {[%clk 0:00:17]} 50. cxd5 {[%clk 0:00:16]}  Rf5 {[%clk 0:00:14]} 51. Rc3 {[%clk 0:00:15]}  Rg5 {[%clk 0:00:09]} 52. Rc6 {[%clk 0:00:15]}  Rxg3 {[%clk 0:00:08]} 53. Kxg3 {[%clk 0:00:16]}  e3 {[%clk 0:00:08]} 54. Re6 {[%clk 0:00:16]}  Rxd4 {[%clk 0:00:08]} 55. Rxe3 {[%clk 0:00:17]}  Rxd5 {[%clk 0:00:08]} 56. Kg4 {[%clk 0:00:16]}  Rxb5 {[%clk 0:00:08]} 57. Rc3 {[%clk 0:00:14]}  Rb4+ {[%clk 0:00:09]} 58. Kf5 {[%clk 0:00:14]}  Nf4 {[%clk 0:00:08]} 59. Rc6+ {[%clk 0:00:12]}  Kg7 {[%clk 0:00:07]} 60. Rc7+ {[%clk 0:00:12]}  Kf8 {[%clk 0:00:08]} 61. Rc3 {[%clk 0:00:11]}  Nd5 {[%clk 0:00:07]} 62. Rd3 {[%clk 0:00:11]}  Ne7+ {[%clk 0:00:06]} 63. Kf6 {[%clk 0:00:12]}  Ng8+ {[%clk 0:00:04]} 64. Ke6 {[%clk 0:00:12]}  Kg7 {[%clk 0:00:03]} 65. Rg3+ {[%clk 0:00:12]}  Kh7 {[%clk 0:00:04]} 66. Kf7 {[%clk 0:00:13]}  Nh6+ {[%clk 0:00:04]} 67. Kf6 {[%clk 0:00:12]}  b5 {[%clk 0:00:04]} 68. Rg7+ {[%clk 0:00:12]}  Kh8 {[%clk 0:00:04]} 69. Ra7 {[%clk 0:00:13]}  Ng8+ {[%clk 0:00:04]} 70. Kg6 {[%clk 0:00:13]}  a4 {[%clk 0:00:04]} 71. Rh7# {[%clk 0:00:13]} 1-0


[Site "https://www.chess.com"]